[Event "*** Titled Tuesday 3|2 Blitz (Late)"]
[Site "Chess.com"]
[Date "2016.11.01"]
[Round "5"]
[White "Genghis_K"]
[Black "uzbektiger95"]
[Result "0-1"]
[WhiteElo "2686"]
[BlackElo "2625"]
[TimeControl "180+2"]
[EndTime "18:05:47 PDT"]
[Termination "uzbektiger95 won by resignation"]

1. e4 {[%clk 0:03:02]} 1... c5 {[%clk 0:03:01.3]} 2. Nf3 {[%clk 0:03:03.3]} 2...
Nc6 {[%clk 0:03:03]} 3. d4 {[%clk 0:02:59.3]} 3... cxd4 {[%clk 0:03:04.9]} 4.
Nxd4 {[%clk 0:03:00.8]} 4... g6 {[%clk 0:03:06.4]} 5. Nc3 {[%clk 0:03:02.1]}
5... Bg7 {[%clk 0:03:07.8]} 6. Be3 {[%clk 0:03:03.6]} 6... Nf6 {[%clk
0:03:09.2]} 7. Bc4 {[%clk 0:03:05.1]} 7... O-O {[%clk 0:03:10.5]} 8. Bb3 {[%clk
0:03:06.6]} 8... d6 {[%clk 0:03:10.9]} 9. f3 {[%clk 0:03:05.9]} 9... Nxd4 {[%clk
0:03:10.3]} 10. Bxd4 {[%clk 0:03:07.3]} 10... Be6 {[%clk 0:03:12.1]} 11. Qd2
{[%clk 0:03:05.5]} 11... Qa5 {[%clk 0:03:12.7]} 12. Bxe6 {[%clk 0:02:59.4]}
12... fxe6 {[%clk 0:03:13.4]} 13. O-O-O {[%clk 0:03:01]} 13... Rfc8 {[%clk
0:03:13.8]} 14. Kb1 {[%clk 0:03:01.3]} 14... b5 {[%clk 0:03:14.3]} 15. Ne2
{[%clk 0:02:53.3]} 15... Qxd2 {[%clk 0:03:14.2]} 16. Rxd2 {[%clk 0:02:54.6]}
16... Nd7 {[%clk 0:03:16.1]} 17. Bxg7 {[%clk 0:02:51.4]} 17... Kxg7 {[%clk
0:03:18]} 18. Nd4 {[%clk 0:02:52.7]} 18... Kf6 {[%clk 0:02:52]} 19. Nxb5 {[%clk
0:02:47]} 19... Rab8 {[%clk 0:02:53.3]} 20. Nd4 {[%clk 0:02:44.7]} 20... Ne5
{[%clk 0:02:51.7]} 21. b3 {[%clk 0:02:33.5]} 21... Nc4 {[%clk 0:02:51.2]} 22.
Kc1 {[%clk 0:02:08.2]} 22... Nxd2 {[%clk 0:02:51.5]} 23. Kxd2 {[%clk 0:02:10.1]}
23... e5 {[%clk 0:02:53.3]} 24. Ne2 {[%clk 0:02:10.8]} 24... a5 {[%clk
0:02:54.3]} 25. a4 {[%clk 0:01:57.1]} 25... Rb4 {[%clk 0:02:54.2]} 26. Rb1
{[%clk 0:01:50.6]} 26... e6 {[%clk 0:02:55]} 27. c3 {[%clk 0:01:49.1]} 27... Rb7
{[%clk 0:02:56]} 28. b4 {[%clk 0:01:50.8]} 28... axb4 {[%clk 0:02:55.7]} 29.
cxb4 {[%clk 0:01:44]} 29... Ra8 {[%clk 0:02:57.6]} 30. Nc3 {[%clk 0:01:43]}
30... Ke7 {[%clk 0:02:49.4]} 31. Kd3 {[%clk 0:01:41.2]} 31... Kd7 {[%clk
0:02:48.6]} 32. a5 {[%clk 0:01:37.3]} 32... d5 {[%clk 0:02:47.2]} 33. Kc2 {[%clk
0:01:01.2]} 33... Kd6 {[%clk 0:02:46.4]} 34. Na4 {[%clk 0:00:56.2]} 34... Rc8+
{[%clk 0:02:47]} 35. Kd3 {[%clk 0:00:54.2]} 35... Rc4 {[%clk 0:02:45.5]} 36. Nb6
{[%clk 0:00:55.2]} 36... Rd4+ {[%clk 0:02:46.7]} 37. Ke3 {[%clk 0:00:56.4]}
37... Kc6 {[%clk 0:02:47.1]} 38. b5+ {[%clk 0:00:22.3]} 38... Kd6 {[%clk
0:02:41.1]} 39. Rc1 {[%clk 0:00:18.8]} 39... Rc7 {[%clk 0:02:39.6]} 40. Nc8+
{[%clk 0:00:11.6]} 40... Kd7 {[%clk 0:02:40.9]} 41. Nb6+ {[%clk 0:00:07.1]}
41... Kd8 {[%clk 0:02:42]} 42. Rxc7 {[%clk 0:00:04.7]} 42... Kxc7 {[%clk
0:02:43.2]} 43. Na8+ {[%clk 0:00:05.9]} 43... Kb7 {[%clk 0:02:43.8]} 44. Nb6
{[%clk 0:00:07.6]} 44... Rb4 {[%clk 0:02:44.4]} 45. Nd7 {[%clk 0:00:09.1]} 45...
Rb3+ {[%clk 0:02:38.3]} 46. Kf2 {[%clk 0:00:08.3]} 46... Rxb5 {[%clk 0:02:39.2]}
47. Nxe5 {[%clk 0:00:09.1]} 47... dxe4 {[%clk 0:02:36.9]} 48. Nc4 {[%clk
0:00:10.6]} 48... Rc5 {[%clk 0:02:33.6]} 49. Nd6+ {[%clk 0:00:10.3]} 49... Kc6
{[%clk 0:02:35]} 50. Nxe4 {[%clk 0:00:11.7]} 50... Rxa5 {[%clk 0:02:36.1]} 51.
Nf6 {[%clk 0:00:13.2]} 51... h5 {[%clk 0:02:35.3]} 52. h4 {[%clk 0:00:12]} 52...
Kd6 {[%clk 0:02:22.8]} 53. Kg3 {[%clk 0:00:11.6]} 53... Ke5 {[%clk 0:02:22.8]}
54. Ne4 {[%clk 0:00:12.7]} 54... Ra4 {[%clk 0:02:23.2]} 55. Nc3 {[%clk
0:00:13.4]} 55... Rc4 {[%clk 0:02:23.6]} 56. Nd1 {[%clk 0:00:14.2]} 56... Kd4
{[%clk 0:02:17]} 57. Nf2 {[%clk 0:00:14.1]} 57... Ke3 {[%clk 0:02:17.1]} 58. Nh3
{[%clk 0:00:13.5]} 58... e5 {[%clk 0:02:18.1]} 59. Ng5 {[%clk 0:00:14.1]} 59...
Rb4 {[%clk 0:02:14.1]} 60. Nf7 {[%clk 0:00:12]} 60... e4 {[%clk 0:02:14.5]} 61.
Ne5 {[%clk 0:00:11.6]} 61... Ke2 {[%clk 0:02:06.6]} 62. fxe4 {[%clk 0:00:03.5]}
62... Rxe4 {[%clk 0:02:08.5]} 63. Nf3 {[%clk 0:00:05.1]} 63... Ke3 {[%clk
0:02:08.5]} 64. Ng5 {[%clk 0:00:04.6]} 64... Rg4+ {[%clk 0:02:06.5]} 65. Kh3
{[%clk 0:00:06.2]} 65... Kf2 {[%clk 0:02:06.5]} 66. Ne6 {[%clk 0:00:03.9]} 66...
Rg3+ {[%clk 0:02:07.3]} 67. Kh2 {[%clk 0:00:05.5]} 67... Rxg2+ {[%clk
0:02:08.7]} 68. Kh3 {[%clk 0:00:07.2]} 68... Rg3+ {[%clk 0:02:10.2]} 69. Kh2
{[%clk 0:00:08.6]} 69... Kf3 {[%clk 0:02:09.8]} 70. Nf8 {[%clk 0:00:08.1]} 70...
Rg4 {[%clk 0:02:09.2]} 71. Kh3 {[%clk 0:00:09.2]} 71... Rg3+ {[%clk 0:02:10.7]}
72. Kh2 {[%clk 0:00:10.5]} 72... Kf4 {[%clk 0:02:10.9]} 73. Nh7 {[%clk
0:00:04.1]} 73... Kg4 {[%clk 0:02:10]} 0-1

[Event "*** Titled Tuesday 3|2 Blitz (Late)"]
[Site "Chess.com"]
[Date "2016.11.01"]
[Round "5"]
[White "AlexanderL"]
[Black "FairChess_on_YouTube"]
[Result "1-0"]
[WhiteElo "2584"]
[BlackElo "2745"]
[TimeControl "180+2"]
[EndTime "18:05:48 PDT"]
[Termination "AlexanderL won by resignation"]

1. d4 {[%clk 0:03:01.9]} 1... g6 {[%clk 0:03:01.4]} 2. c4 {[%clk 0:03:00.2]}
2... Bg7 {[%clk 0:03:02.7]} 3. Nc3 {[%clk 0:03:01.2]} 3... d6 {[%clk 0:03:03.8]}
4. e4 {[%clk 0:03:01.9]} 4... e5 {[%clk 0:03:03.9]} 5. Nge2 {[%clk 0:02:58.9]}
5... Nc6 {[%clk 0:03:00.8]} 6. d5 {[%clk 0:02:59.5]} 6... Nce7 {[%clk 0:03:00]}
7. Be3 {[%clk 0:03:00]} 7... f5 {[%clk 0:03:00.3]} 8. f3 {[%clk 0:02:59.7]} 8...
Bh6 {[%clk 0:02:51.6]} 9. Bf2 {[%clk 0:03:00.7]} 9... Nf6 {[%clk 0:02:49.5]} 10.
Ng3 {[%clk 0:03:01.8]} 10... fxe4 {[%clk 0:02:41.8]} 11. Ngxe4 {[%clk
0:03:01.1]} 11... O-O {[%clk 0:02:40.9]} 12. Nxf6+ {[%clk 0:02:59]} 12... Rxf6
{[%clk 0:02:41.7]} 13. Bd3 {[%clk 0:02:59.4]} 13... Rf8 {[%clk 0:02:36.4]} 14.
O-O {[%clk 0:02:58.9]} 14... b6 {[%clk 0:02:37.7]} 15. Bh4 {[%clk 0:02:49.6]}
15... Rf4 {[%clk 0:02:31.5]} 16. Bg3 {[%clk 0:02:47.2]} 16... Rf8 {[%clk
0:02:30]} 17. Bh4 {[%clk 0:02:48]} 17... Rf4 {[%clk 0:02:30.8]} 18. Qe1 {[%clk
0:02:40.4]} 18... Qf8 {[%clk 0:02:26.4]} 19. Bg3 {[%clk 0:02:41]} 19... Rf7
{[%clk 0:02:24.6]} 20. Ne4 {[%clk 0:02:41.5]} 20... Bf5 {[%clk 0:02:20.9]} 21.
Qe2 {[%clk 0:02:39.4]} 21... Qg7 {[%clk 0:02:15.9]} 22. b4 {[%clk 0:02:36.2]}
22... a5 {[%clk 0:02:12.3]} 23. a3 {[%clk 0:02:36.8]} 23... Kh8 {[%clk
0:01:51.8]} 24. Bc2 {[%clk 0:02:26.3]} 24... Rff8 {[%clk 0:01:43.6]} 25. Rfd1
{[%clk 0:02:25.3]} 25... Bd7 {[%clk 0:01:36.1]} 26. Bf2 {[%clk 0:02:19.8]} 26...
Nf5 {[%clk 0:00:08.5]} 27. c5 {[%clk 0:02:16.4]} 27... axb4 {[%clk 0:00:08.7]}
28. axb4 {[%clk 0:02:17.4]} 28... Rxa1 {[%clk 0:00:09.3]} 29. Rxa1 {[%clk
0:02:18.2]} 29... Nd4 {[%clk 0:00:10.9]} 30. Qd1 {[%clk 0:01:59.2]} 30... bxc5
{[%clk 0:00:11.8]} 31. bxc5 {[%clk 0:02:00]} 31... Bb5 {[%clk 0:00:12.2]} 32.
Bd3 {[%clk 0:01:54.9]} 32... Bxd3 {[%clk 0:00:11.6]} 33. Qxd3 {[%clk 0:01:56.1]}
33... dxc5 {[%clk 0:00:12.8]} 34. Nxc5 {[%clk 0:01:56.4]} 34... Qf7 {[%clk
0:00:09.6]} 35. Qe4 {[%clk 0:01:24.8]} 35... Bg7 {[%clk 0:00:10.8]} 36. Ra7
{[%clk 0:01:24.5]} 36... Rd8 {[%clk 0:00:11.8]} 37. Bxd4 {[%clk 0:01:20.8]}
37... exd4 {[%clk 0:00:12.2]} 38. Ne6 {[%clk 0:01:22]} 38... Re8 {[%clk
0:00:10.7]} 39. Rxc7 {[%clk 0:01:06.8]} 39... Qxc7 {[%clk 0:00:09.7]} 40. Nxc7
{[%clk 0:01:07.6]} 40... Rxe4 {[%clk 0:00:11.4]} 41. fxe4 {[%clk 0:01:09]} 41...
Be5 {[%clk 0:00:10.3]} 42. Nb5 {[%clk 0:00:54.8]} 42... d3 {[%clk 0:00:11.6]}
43. Kf2 {[%clk 0:00:55]} 43... Bxh2 {[%clk 0:00:10]} 44. g3 {[%clk 0:00:53.6]}
44... Kg7 {[%clk 0:00:10.3]} 45. e5 {[%clk 0:00:36.4]} 45... h5 {[%clk
0:00:09.6]} 46. Kg2 {[%clk 0:00:37.3]} 46... Bxg3 {[%clk 0:00:10.5]} 47. Kxg3
{[%clk 0:00:38.6]} 47... g5 {[%clk 0:00:12.2]} 48. Nc3 {[%clk 0:00:19.6]} 48...
d2 {[%clk 0:00:12.8]} 49. Kf2 {[%clk 0:00:18.7]} 49... h4 {[%clk 0:00:14.2]} 50.
Ke2 {[%clk 0:00:17.7]} 50... h3 {[%clk 0:00:15.1]} 51. Ne4 {[%clk 0:00:18.7]}
51... h2 {[%clk 0:00:16.1]} 52. Ng3 {[%clk 0:00:18.6]} 1-0

[Event "*** Titled Tuesday 3|2 Blitz (Late)"]
[Site "Chess.com"]
[Date "2016.11.01"]
[Round "5"]
[White "Peroncio"]
[Black "GMKrikor"]
[Result "0-1"]
[WhiteElo "2492"]
[BlackElo "2537"]
[TimeControl "180+2"]
[EndTime "18:05:53 PDT"]
[Termination "GMKrikor won by resignation"]

1. e4 {[%clk 0:03:00.6]} 1... e5 {[%clk 0:02:57.7]} 2. Nf3 {[%clk 0:03:01.3]}
2... Nc6 {[%clk 0:02:58.4]} 3. Bb5 {[%clk 0:03:02]} 3... a6 {[%clk 0:02:56.8]}
4. Ba4 {[%clk 0:03:02.2]} 4... Nf6 {[%clk 0:02:58.3]} 5. O-O {[%clk 0:03:01.7]}
5... Be7 {[%clk 0:02:59]} 6. Re1 {[%clk 0:03:02.4]} 6... b5 {[%clk 0:02:58.2]}
7. Bb3 {[%clk 0:03:03.9]} 7... O-O {[%clk 0:02:59.4]} 8. h3 {[%clk 0:03:04.6]}
8... Bb7 {[%clk 0:02:40.2]} 9. d3 {[%clk 0:02:50.9]} 9... d5 {[%clk 0:02:40.2]}
10. Nbd2 {[%clk 0:02:47.7]} 10... dxe4 {[%clk 0:02:29.8]} 11. dxe4 {[%clk
0:02:48.4]} 11... Na5 {[%clk 0:02:13.6]} 12. Nxe5 {[%clk 0:02:43.4]} 12... Nxb3
{[%clk 0:02:14.7]} 13. axb3 {[%clk 0:02:42.6]} 13... Nxe4 {[%clk 0:02:16.3]} 14.
Nxe4 {[%clk 0:02:35.9]} 14... Qxd1 {[%clk 0:02:16]} 15. Rxd1 {[%clk 0:02:36.8]}
15... Bxe4 {[%clk 0:02:17.4]} 16. Be3 {[%clk 0:02:17.6]} 16... Bxc2 {[%clk
0:02:13.8]} 17. Rdc1 {[%clk 0:02:15.5]} 17... Bxb3 {[%clk 0:02:15.3]} 18. Rc6
{[%clk 0:02:00.9]} 18... Bd6 {[%clk 0:02:01.1]} 19. Nf3 {[%clk 0:01:50]} 19...
a5 {[%clk 0:01:55.9]} 20. Nd4 {[%clk 0:01:50.3]} 20... Bd5 {[%clk 0:01:51.9]}
21. Rc2 {[%clk 0:01:50.9]} 21... b4 {[%clk 0:01:36.1]} 22. Nb5 {[%clk
0:01:47.2]} 22... Be4 {[%clk 0:01:19.4]} 23. Rd2 {[%clk 0:01:42.1]} 23... Be5
{[%clk 0:01:09.3]} 24. f4 {[%clk 0:01:32.3]} 24... Bf6 {[%clk 0:00:51.8]} 25.
Nxc7 {[%clk 0:01:33.1]} 25... Rac8 {[%clk 0:00:50.7]} 26. Nb5 {[%clk 0:01:33.4]}
26... Rc2 {[%clk 0:00:24.8]} 27. Nd6 {[%clk 0:01:03.7]} 27... Rxd2 {[%clk
0:00:14.7]} 28. Bxd2 {[%clk 0:01:04.7]} 28... Bc2 {[%clk 0:00:13.7]} 29. Rxa5
{[%clk 0:01:03.6]} 29... b3 {[%clk 0:00:14.6]} 30. Nc4 {[%clk 0:00:57.1]} 30...
h6 {[%clk 0:00:10.1]} 31. Ne5 {[%clk 0:00:58]} 31... Rd8 {[%clk 0:00:09.6]} 32.
Bc3 {[%clk 0:00:58.5]} 32... Be4 {[%clk 0:00:09.9]} 33. Rb5 {[%clk 0:00:49.2]}
33... Rd1+ {[%clk 0:00:06.3]} 34. Kf2 {[%clk 0:00:49.7]} 34... Rc1 {[%clk
0:00:07.9]} 35. Rxb3 {[%clk 0:00:49.1]} 35... Rc2+ {[%clk 0:00:09.1]} 36. Ke3
{[%clk 0:00:48.9]} 36... Bxg2 {[%clk 0:00:08.2]} 37. Rb8+ {[%clk 0:00:49.4]}
37... Kh7 {[%clk 0:00:09]} 38. Nd7 {[%clk 0:00:33.5]} 38... Be7 {[%clk
0:00:04.3]} 39. Ne5 {[%clk 0:00:21.4]} 39... Bxh3 {[%clk 0:00:03.5]} 40. Rb7
{[%clk 0:00:21.8]} 40... Bf6 {[%clk 0:00:03.2]} 41. Rxf7 {[%clk 0:00:21.7]}
41... Kg8 {[%clk 0:00:04.1]} 42. Ra7 {[%clk 0:00:21.4]} 42... Bf5 {[%clk
0:00:04.3]} 43. Nd7 {[%clk 0:00:15.7]} 43... Bxc3 {[%clk 0:00:04.9]} 44. bxc3
{[%clk 0:00:14]} 44... Rxc3+ {[%clk 0:00:06.5]} 45. Kd4 {[%clk 0:00:15.9]} 45...
Rd3+ {[%clk 0:00:07.6]} 46. Ke5 {[%clk 0:00:16.6]} 46... Bxd7 {[%clk 0:00:08.4]}
47. Ra8+ {[%clk 0:00:17.5]} 47... Kf7 {[%clk 0:00:09.5]} 48. f5 {[%clk
0:00:19.4]} 48... Rf3 {[%clk 0:00:08.6]} 49. Ra7 {[%clk 0:00:21.3]} 49... Rxf5+
{[%clk 0:00:09.5]} 50. Ke4 {[%clk 0:00:23.2]} 50... Ke7 {[%clk 0:00:09.7]} 0-1

[Event "*** Titled Tuesday 3|2 Blitz (Late)"]
[Site "Chess.com"]
[Date "2016.11.01"]
[Round "5"]
[White "Rumpel-VK"]
[Black "NTBT_DHS"]
[Result "0-1"]
[WhiteElo "2475"]
[BlackElo "2514"]
[TimeControl "180+2"]
[EndTime "18:06:22 PDT"]
[Termination "NTBT_DHS won on time"]

1. e4 {[%clk 0:03:00.4]} 1... g6 {[%clk 0:03:00.7]} 2. g3 {[%clk 0:03:00.4]}
2... Bg7 {[%clk 0:03:01.3]} 3. Bg2 {[%clk 0:03:02]} 3... d6 {[%clk 0:03:00.8]}
4. f4 {[%clk 0:03:02.3]} 4... Nf6 {[%clk 0:02:57.2]} 5. d3 {[%clk 0:03:02.5]}
5... O-O {[%clk 0:02:58.4]} 6. Nf3 {[%clk 0:03:03.2]} 6... c6 {[%clk 0:02:59.7]}
7. O-O {[%clk 0:03:03.7]} 7... Qa5 {[%clk 0:03:01.1]} 8. h3 {[%clk 0:02:57]}
8... Nh5 {[%clk 0:02:56.6]} 9. g4 {[%clk 0:02:55.2]} 9... Qb6+ {[%clk
0:02:56.6]} 10. d4 {[%clk 0:02:44.6]} 10... Ng3 {[%clk 0:02:53.9]} 11. Re1
{[%clk 0:02:44.4]} 11... d5 {[%clk 0:02:45.5]} 12. e5 {[%clk 0:02:35.4]} 12...
f5 {[%clk 0:02:34.7]} 13. exf6 {[%clk 0:02:08.3]} 13... exf6 {[%clk 0:02:34.5]}
14. c3 {[%clk 0:02:02.5]} 14... Na6 {[%clk 0:02:19.1]} 15. Nbd2 {[%clk
0:02:00.7]} 15... f5 {[%clk 0:02:05.9]} 16. g5 {[%clk 0:02:01.1]} 16... Ne4
{[%clk 0:02:04.2]} 17. Qb3 {[%clk 0:01:45.9]} 17... Be6 {[%clk 0:02:00.9]} 18.
Qxb6 {[%clk 0:01:34.1]} 18... axb6 {[%clk 0:02:01.6]} 19. Nb3 {[%clk 0:01:32.8]}
19... Nc7 {[%clk 0:02:01]} 20. Be3 {[%clk 0:01:31.4]} 20... Ra4 {[%clk
0:02:00.7]} 21. Nc1 {[%clk 0:01:27.4]} 21... Re8 {[%clk 0:01:59.6]} 22. Nd3
{[%clk 0:01:27.6]} 22... Nb5 {[%clk 0:01:53.9]} 23. Nfe5 {[%clk 0:01:23]} 23...
Nbd6 {[%clk 0:01:53.5]} 24. a3 {[%clk 0:01:20.5]} 24... Nc4 {[%clk 0:01:31.9]}
25. Re2 {[%clk 0:01:16.4]} 25... Nxe3 {[%clk 0:01:20.8]} 26. Rxe3 {[%clk
0:01:16.9]} 26... Rc8 {[%clk 0:01:16.9]} 27. Ne1 {[%clk 0:00:58.5]} 27... c5
{[%clk 0:01:13.7]} 28. N1f3 {[%clk 0:00:59.2]} 28... Bxe5 {[%clk 0:01:01.3]} 29.
fxe5 {[%clk 0:00:48.4]} 29... cxd4 {[%clk 0:01:01.7]} 30. Nxd4 {[%clk
0:00:45.3]} 30... Kf7 {[%clk 0:01:01.5]} 31. Bxe4 {[%clk 0:00:39.6]} 31... dxe4
{[%clk 0:00:59.8]} 32. Rf1 {[%clk 0:00:28.8]} 32... Ke7 {[%clk 0:00:55.5]} 33.
Kh2 {[%clk 0:00:19.4]} 33... Ra5 {[%clk 0:00:55.4]} 34. Kg3 {[%clk 0:00:20.4]}
34... Rxe5 {[%clk 0:00:55.9]} 35. Kf4 {[%clk 0:00:21.6]} 35... Rd5 {[%clk
0:00:52.4]} 36. h4 {[%clk 0:00:22.7]} 36... Bf7 {[%clk 0:00:52.4]} 37. h5 {[%clk
0:00:23.3]} 37... Rc4 {[%clk 0:00:43.4]} 38. hxg6 {[%clk 0:00:22.9]} 38... hxg6
{[%clk 0:00:44.3]} 39. Rh1 {[%clk 0:00:23.7]} 39... Rdxd4 {[%clk 0:00:37.8]} 40.
cxd4 {[%clk 0:00:24.1]} 40... Rxd4 {[%clk 0:00:33.5]} 41. Rc1 {[%clk 0:00:22.1]}
41... Kd6 {[%clk 0:00:25.7]} 42. Rc2 {[%clk 0:00:19.3]} 42... Bc4 {[%clk
0:00:25.7]} 43. Rh2 {[%clk 0:00:15.8]} 43... Rd1 {[%clk 0:00:23.3]} 44. Kg3
{[%clk 0:00:11.2]} 44... Rf1 {[%clk 0:00:23.8]} 45. Kg2 {[%clk 0:00:11.3]} 45...
Rb1 {[%clk 0:00:20.1]} 46. Rh6 {[%clk 0:00:11]} 46... Rxb2+ {[%clk 0:00:18.3]}
47. Kg3 {[%clk 0:00:12.1]} 47... Ke5 {[%clk 0:00:19.2]} 48. Rc3 {[%clk
0:00:09.4]} 48... f4+ {[%clk 0:00:17.9]} 49. Kh4 {[%clk 0:00:09.4]} 49... Be6
{[%clk 0:00:18.2]} 50. Rh3 {[%clk 0:00:04]} 50... Bxh3 {[%clk 0:00:17.1]} 51.
Kxh3 {[%clk 0:00:05.4]} 51... Kf5 {[%clk 0:00:18.2]} 52. Rh8 {[%clk 0:00:05.1]}
52... Kxg5 {[%clk 0:00:19.3]} 53. a4 {[%clk 0:00:06.1]} 53... e3 {[%clk
0:00:19.5]} 54. a5 {[%clk 0:00:07.1]} 54... e2 {[%clk 0:00:15.9]} 55. axb6
{[%clk 0:00:06.3]} 55... Rb3+ {[%clk 0:00:15.7]} 56. Kg2 {[%clk 0:00:06.2]}
56... e1=Q {[%clk 0:00:16]} 57. Rh5+ {[%clk 0:00:05.8]} 57... gxh5 {[%clk
0:00:17]} 0-1

[Event "*** Titled Tuesday 3|2 Blitz (Late)"]
[Site "Chess.com"]
[Date "2016.11.01"]
[Round "5"]
[White "spirals5"]
[Black "micfel"]
[Result "1/2-1/2"]
[WhiteElo "2265"]
[BlackElo "2283"]
[TimeControl "180+2"]
[EndTime "18:06:32 PDT"]
[Termination "Game drawn - insufficient material"]

1. e4 {[%clk 0:03:01.9]} 1... e5 {[%clk 0:02:59.3]} 2. Nf3 {[%clk 0:03:02.1]}
2... Nf6 {[%clk 0:02:59.2]} 3. Nc3 {[%clk 0:03:01.9]} 3... Nc6 {[%clk
0:02:59.5]} 4. Bb5 {[%clk 0:03:01.9]} 4... Bc5 {[%clk 0:02:59.8]} 5. O-O {[%clk
0:03:02.1]} 5... O-O {[%clk 0:02:59.6]} 6. Bxc6 {[%clk 0:03:01.8]} 6... dxc6
{[%clk 0:03:00]} 7. h3 {[%clk 0:03:01.9]} 7... Re8 {[%clk 0:03:00.4]} 8. d3
{[%clk 0:03:02.2]} 8... h6 {[%clk 0:03:00.9]} 9. Be3 {[%clk 0:03:02]} 9... Bb6
{[%clk 0:02:59.5]} 10. Bxb6 {[%clk 0:02:55.7]} 10... axb6 {[%clk 0:02:59.9]} 11.
Re1 {[%clk 0:02:55.8]} 11... c5 {[%clk 0:03:00.5]} 12. Ne2 {[%clk 0:02:53.2]}
12... c4 {[%clk 0:02:58.4]} 13. Ng3 {[%clk 0:02:53.7]} 13... cxd3 {[%clk
0:02:58.7]} 14. Qxd3 {[%clk 0:02:54]} 14... Qe7 {[%clk 0:02:55.2]} 15. a3 {[%clk
0:02:50.5]} 15... Bd7 {[%clk 0:02:54.1]} 16. Qc3 {[%clk 0:02:45]} 16... c6
{[%clk 0:02:50.1]} 17. Rad1 {[%clk 0:02:42.6]} 17... Rad8 {[%clk 0:02:50.4]} 18.
Rd3 {[%clk 0:02:37.9]} 18... Bc8 {[%clk 0:02:49.9]} 19. Red1 {[%clk 0:02:37.9]}
19... Rxd3 {[%clk 0:02:50]} 20. Qxd3 {[%clk 0:02:37.4]} 20... Qc5 {[%clk
0:02:45.8]} 21. b4 {[%clk 0:02:30]} 21... Qe7 {[%clk 0:02:41.3]} 22. Qd6 {[%clk
0:02:29.1]} 22... Qxd6 {[%clk 0:02:41.6]} 23. Rxd6 {[%clk 0:02:28.8]} 23... b5
{[%clk 0:02:40.3]} 24. Kf1 {[%clk 0:02:25.1]} 24... Kf8 {[%clk 0:02:40.5]} 25.
Ke2 {[%clk 0:02:22.4]} 25... Ke7 {[%clk 0:02:34.9]} 26. Rd1 {[%clk 0:02:15.3]}
26... Kf8 {[%clk 0:02:35.1]} 27. Ke3 {[%clk 0:02:13.4]} 27... g6 {[%clk
0:02:26.9]} 28. Rd6 {[%clk 0:01:42.5]} 28... Ke7 {[%clk 0:02:26.4]} 29. Rd2
{[%clk 0:01:36.9]} 29... Nd7 {[%clk 0:02:26.7]} 30. Rd1 {[%clk 0:01:31.5]} 30...
Kf8 {[%clk 0:02:26.7]} 31. Nd2 {[%clk 0:01:31.3]} 31... Nb6 {[%clk 0:02:27.2]}
32. Rc1 {[%clk 0:01:26.7]} 32... Be6 {[%clk 0:02:26.8]} 33. Ne2 {[%clk
0:01:22.6]} 33... Ra8 {[%clk 0:02:25.1]} 34. Ra1 {[%clk 0:01:22.9]} 34... Ke7
{[%clk 0:02:19.4]} 35. Nc3 {[%clk 0:01:23.2]} 35... f5 {[%clk 0:02:14.9]} 36. f3
{[%clk 0:01:22.7]} 36... f4+ {[%clk 0:02:12.6]} 37. Ke2 {[%clk 0:01:23.1]} 37...
Bc4+ {[%clk 0:02:13]} 38. Ke1 {[%clk 0:01:22.3]} 38... Kf6 {[%clk 0:02:13.1]}
39. Nb3 {[%clk 0:01:09.9]} 39... Bxb3 {[%clk 0:02:02.5]} 40. cxb3 {[%clk
0:01:10]} 40... Rd8 {[%clk 0:02:02.9]} 41. Rd1 {[%clk 0:01:10.3]} 41... Rxd1+
{[%clk 0:02:01.6]} 42. Nxd1 {[%clk 0:01:10.9]} 42... Ke6 {[%clk 0:01:57.3]} 43.
Nc3 {[%clk 0:01:09.9]} 43... Kd6 {[%clk 0:01:57.8]} 44. Ke2 {[%clk 0:01:09.2]}
44... Nd7 {[%clk 0:01:57.4]} 45. Kd3 {[%clk 0:01:07.1]} 45... Nf8 {[%clk
0:01:57.7]} 46. Ne2 {[%clk 0:01:04.1]} 46... Ne6 {[%clk 0:01:57.9]} 47. a4
{[%clk 0:00:59.3]} 47... Nc7 {[%clk 0:01:52]} 48. axb5 {[%clk 0:00:46.3]} 48...
Nxb5 {[%clk 0:01:50]} 49. Kc4 {[%clk 0:00:38.7]} 49... Nc7 {[%clk 0:01:48.3]}
50. Kd3 {[%clk 0:00:36.1]} 50... Ne6 {[%clk 0:01:47.9]} 51. Kc4 {[%clk
0:00:34.4]} 51... b5+ {[%clk 0:01:47.2]} 52. Kd3 {[%clk 0:00:32.6]} 52... c5
{[%clk 0:01:42.1]} 53. bxc5+ {[%clk 0:00:33]} 53... Kxc5 {[%clk 0:01:42.6]} 54.
Kc3 {[%clk 0:00:32.3]} 54... b4+ {[%clk 0:01:34.1]} 55. Kd3 {[%clk 0:00:32.4]}
55... Nc7 {[%clk 0:01:33.7]} 56. Nc1 {[%clk 0:00:25.9]} 56... Nb5 {[%clk
0:01:33.1]} 57. Kd2 {[%clk 0:00:26.8]} 57... Nd4 {[%clk 0:01:12.8]} 58. Nd3+
{[%clk 0:00:27.3]} 58... Kd6 {[%clk 0:01:12]} 59. Nxb4 {[%clk 0:00:27]} 59...
Nxb3+ {[%clk 0:01:12.6]} 60. Ke2 {[%clk 0:00:27.2]} 60... Nd4+ {[%clk 0:01:13]}
61. Kf2 {[%clk 0:00:27.5]} 61... g5 {[%clk 0:01:10.8]} 62. Nd3 {[%clk
0:00:26.2]} 62... Nc2 {[%clk 0:01:10.3]} 63. g3 {[%clk 0:00:21.5]} 63... fxg3+
{[%clk 0:01:03.2]} 64. Kxg3 {[%clk 0:00:22.2]} 64... h5 {[%clk 0:01:02.1]} 65.
h4 {[%clk 0:00:22.7]} 65... gxh4+ {[%clk 0:01:01.8]} 66. Kxh4 {[%clk 0:00:23.2]}
66... Nd4 {[%clk 0:01:02.5]} 67. Ne1 {[%clk 0:00:20.9]} 67... Kc5 {[%clk
0:00:54.7]} 68. Kxh5 {[%clk 0:00:21.9]} 68... Ne2 {[%clk 0:00:51.9]} 69. Kg4
{[%clk 0:00:20]} 69... Kd4 {[%clk 0:00:52.4]} 70. Kf5 {[%clk 0:00:19.1]} 70...
Ng3+ {[%clk 0:00:52]} 71. Ke6 {[%clk 0:00:17.1]} 71... Nxe4 {[%clk 0:00:51.8]}
72. fxe4 {[%clk 0:00:11.7]} 72... Kxe4 {[%clk 0:00:51.9]} 73. Nd3 {[%clk
0:00:12.5]} 73... Kxd3 {[%clk 0:00:52.5]} 74. Kxe5 {[%clk 0:00:13.5]} 1/2-1/2